fUSD/lending_fUSD_20241122
["ID","MTS","AMOUNT","RATE_DAILY","PERIOD"]
[342967518,1732233895647,10000.0,0.00020061,10]
[342967519,1732233907524,10000.0,0.00020061,10]
[342967520,1732233925537,10000.0,0.00020061,10]
[342967521,1732233951364,10000.0,0.00020061,10]
[342967522,1732233966726,10000.0,0.00020061,10]
[342967523,1732233982469,10000.0,0.00024,30]
[342967525,1732233992146,-155.82,0.00015342,2]
[342967526,1732233992166,-250.0,0.00025,20]
[342967527,1732233992188,-27.06765383,0.0003,20]
[342967528,1732234002546,10000.0,0.00020061,10]
[342967529,1732234022006,10000.0,0.00020061,10]
[342967530,1732234038419,10000.0,0.00020061,10]
[342967531,1732234053442,10000.0,0.00020061,10]
[342967532,1732234070243,10000.0,0.00020061,10]
[342967533,1732234085687,10000.0,0.00020061,10]
[342967534,1732234105217,10000.0,0.00020061,10]
[342967535,1732234136536,10000.0,0.00020061,10]
[342967542,1732234155148,10000.0,0.00020061,10]
[342967543,1732234171615,10000.0,0.00020061,10]
[342967549,1732234190225,10000.0,0.00020061,10]
[342967553,1732234205193,10000.0,0.00020061,10]
[342967562,1732234231439,-222.93234617,0.0003,20]
[342967563,1732234231449,-250.0,0.00031,2]
[342967564,1732234231459,-250.0,0.00035,20]
[342967565,1732234231468,-2880.24231714,0.00035,2]
[342967566,1732234231477,-155.82,0.00035616,2]
[342967567,1732234231487,-421.0,0.00037423,120]
[342967568,1732234231496,-150.0,0.00038239,120]
[342967569,1732234231505,-150.0,0.00038641,120]
[342967570,1732234231514,-250.0,0.0004,30]
[342967571,1732234231524,-204.01,0.000419,2]
[342967572,1732234231533,-152.56,0.000423,33]
[342967573,1732234231543,-150.0,0.00043712,120]
[342967574,1732234231556,-250.0,0.00045,60]
[342967575,1732234231565,-523.293,0.00045329,2]
[342967576,1732234231576,-150.0,0.00045329,2]
[342967577,1732234231587,-152.56,0.000463,39]
[342967578,1732234231597,-152.56,0.000463,39]
[342967579,1732234231607,-150.0,0.00046388,120]
[342967580,1732234231617,-150.0,0.00046654,120]
[342967581,1732234231627,-170.72,0.0004681,120]
[342967582,1732234231637,-150.0,0.00046903,120]
[342967583,1732234231646,-3273.1,0.000473,7]
[342967584,1732234231656,-319.672,0.00047815,2]
[342967585,1732234231667,-919.0,0.00047815,2]
[342967586,1732234231677,-700.0,0.00047991,18]
[342967587,1732234231687,-700.0,0.00047991,18]
[342967588,1732234231697,-700.0,0.00047991,18]
[342967589,1732234231706,-700.0,0.00047991,18]
[342967590,1732234231715,-700.0,0.00047991,18]
[342967591,1732234231725,-700.0,0.00047991,18]
[342967592,1732234231734,-700.0,0.00047991,18]
[342967593,1732234231744,-462.05481452,0.00047991,18]
[342967594,1732234231754,-594.8,0.000497,7]
[342967595,1732234231763,-250.0,0.0005,120]
[342967596,1732234231773,-500.0,0.0005,120]
[342967597,1732234231783,-500.0,0.0005,120]
[342967598,1732234231793,-150.0,0.0005,120]
[342967599,1732234231805,-170.721,0.0005015,120]
[342967600,1732234231815,-1006.64231357,0.00050306,120]
[342967601,1732234231824,-150.0,0.00050315,120]
[342967602,1732234231834,-368.28,0.00050346,7]
[342967603,1732234231844,-152.56,0.000504,48]
[342967604,1732234231853,-152.56,0.000504,48]
[342967605,1732234231863,-150.0,0.00050646,2]
[342967606,1732234231873,-2000.0,0.000509,120]
[342967607,1732234231882,-150.0,0.00051075,120]
[342967608,1732234231893,-150.0,0.00051192,120]
[342967609,1732234231903,-612.04,0.000512,7]
[342967610,1732234231912,-666.33,0.00051533,120]
[342967611,1732234231922,-151.94,0.00051694,120]
[342967612,1732234231931,-1000.0,0.00051694,120]
[342967613,1732234231941,-250.0,0.00051735,120]
[342967614,1732234231950,-250.0,0.00051762,120]
[342967615,1732234231960,-150.0,0.00052,100]
[342967616,1732234231970,-61357.67557607,0.00052088,2]
[342967617,1732234231980,-241.70219812,0.00052254,14]
[342967618,1732234231990,-250.0,0.00052289,120]
[342967619,1732234231999,-241.70219812,0.00052321,14]
[342967620,1732234232008,-191.0,0.0005235,90]
[342967621,1732234232017,-241.70219812,0.00052446,14]
[342967622,1732234232027,-150.0,0.000525,101]
[342967623,1732234232039,-20000.0,0.000525,120]
[342967624,1732234232052,-563.21,0.00052917,2]
[342967625,1732234232061,-150.0,0.00053,102]
[342967626,1732234232071,-11563.75478288,0.00053,120]
[342967627,1732234232081,-170.659,0.0005349,120]
[342967628,1732234232091,-500.0,0.00054062,2]
[342967629,1732234232100,-9128.32594111,0.00054152,120]
[342967630,1732234232110,-152.56,0.000545,54]
[342967631,1732234232119,-152.56,0.000545,54]
[342967632,1732234232129,-152.44,0.00054541,120]
[342967633,1732234232139,-500.0,0.00054795,120]
[342967634,1732234232149,-500.0,0.00054795,120]
[342967635,1732234232158,-204.26,0.00054856,30]
[342967636,1732234232168,-500.0,0.00055,120]
[342967637,1732234232178,-900.0,0.00055,56]
[342967638,1732234232189,-150.24,0.00055049,120]
[342967639,1732234232365,-563.21,0.00055181,2]
[342967640,1732234232383,-155.84,0.0005521,10]
[342967641,1732234232392,-19863.51,0.0005522,120]
[342967642,1732234232402,-1500.0,0.000553,90]
[342967643,1732234232412,-500.0,0.00055355,30]
[342967644,1732234232422,-23900.0,0.00055419,2]
[342967645,1732234232431,-161.36,0.00055436,2]
[342967646,1732234232441,-3000.0,0.000556,90]
[342967647,1732234232450,-535.20505919,0.00055629,30]
[342967648,1732234232460,-389.97,0.0005572,106]
[342967649,1732234232469,-333.67,0.0005572,120]
[342967650,1732234232479,-155.82,0.0005589,2]
[342967651,1732234232488,-2823.37073898,0.000559,15]
[342967652,1732234232498,-553.30382221,0.000559,15]
[342967653,1732234232507,-2995.1852,0.000559,2]
[342967654,1732234232516,-50000.0,0.00056,120]
[342967655,1732234232526,-10919.15697222,0.00056,120]
[342967656,1732234232535,-900.0,0.00056,57]
[342967657,1732234232545,-500.0,0.00056674,120]
[342967658,1732234232556,-170.727,0.0005683,120]
[342967659,1732234232565,-20000.0,0.00057,120]
[342967660,1732234232579,-20000.0,0.00057,120]
[342967661,1732234232588,-20000.0,0.00057,120]
[342967662,1732234232597,-500.0,0.00057222,120]
[342967663,1732234232606,-176.89121322,0.000574,28]
[342967664,1732234232617,-563.21,0.00057445,2]
[342967665,1732234232626,-20000.0,0.000575,120]
[342967666,1732234232635,-16552.58110616,0.000575,120]
[342967667,1732234232649,-2299.76847704,0.000575,120]
[342967668,1732234232661,-924.69295702,0.000575,120]
[342967669,1732234232672,-222.95745978,0.000575,120]
[342967670,1732234232681,-16441.06869002,0.000575,90]
[342967671,1732234232692,-369.0,0.000575,90]
[342967672,1732234232770,-807.66731808,0.000575,90]
[342967673,1732234232781,-818.73,0.000575,90]
[342967674,1732234232792,-828.096,0.000575,90]
[342967675,1732234232805,-819.06,0.000575,90]
[342967676,1732234232816,-818.1184,0.000575,90]
[342967677,1732234232828,-653.767807,0.000575,90]
[342967678,1732234232838,-89.71478937,0.000575,120]
[342967679,1732234232849,-1800.0,0.000575,120]
[342967680,1732234234334,-500.0,0.000463,39]
[342967681,1732234234344,-871.89893309,0.000575,120]
[342967682,1732234234356,-654.08393192,0.000575,120]
[342967683,1732234234368,-351.899999,0.000575,120]
[342967710,1732234237525,-150.0,0.0005,120]
[342967711,1732234237535,-150.0,0.00051192,120]
[342967712,1732234237543,-59.74122103,0.0005635,30]
[342967713,1732234237557,-964.13043591,0.0005635,30]
[342967714,1732234237567,-1357.94402039,0.000575,120]
[342967715,1732234237580,-2389.45216104,0.000575,120]
[342967716,1732234237634,-500.0,0.00047991,18]
[342967717,1732234237643,-7564.44974372,0.000575,120]
[342967718,1732234237655,-8826.5965897,0.000575,120]
[342967719,1732234237792,-150.0,0.000512,7]
[342967720,1732234237804,-5761.66747391,0.000575,120]
[342967721,1732234237815,-332.29235786,0.000575,120]
[342967722,1732234237824,-500.0,0.00057534,120]
[342967723,1732234237833,-500.0,0.00057534,120]
[342967724,1732234237842,-395.38278283,0.00057534,120]
[342967725,1732234237853,-720.62291816,0.00057534,120]
[342967730,1732234238175,10000.0,0.00020061,10]
[342967731,1732234239416,-500.0,0.0005015,120]
[342967732,1732234239426,-667.22429901,0.00057534,120]
[342967733,1732234239437,-500.0,0.00057534,120]
[342967734,1732234239447,-500.0,0.00057534,2]
[342967735,1732234239456,-500.0,0.00057534,120]
[342967736,1732234239466,-579.28,0.00057534,120]
[342967737,1732234239475,-8765.05,0.00057534,120]
[342967738,1732234239484,-500.0,0.00057534,120]
[342967739,1732234239493,-500.0,0.00057534,120]
[342967740,1732234239502,-489.8503,0.00057534,120]
[342967741,1732234239512,-44623.8521,0.0005765,2]
[342967742,1732234239521,-500.0,0.0005767,120]
[342967743,1732234239531,-500.0,0.0005767,120]
[342967744,1732234239540,-500.0,0.0005767,120]
[342967745,1732234239549,-2000.0,0.0005775,120]
[342967746,1732234239560,-152.44,0.00057814,120]
[342967747,1732234239572,-1700.0,0.000579,21]
[342967748,1732234239582,-292.49716958,0.000579,29]
[342967749,1732234239591,-500.0,0.00057944,120]
[342967750,1732234239600,-500.0,0.00057944,120]
[342967751,1732234239610,-666.33,0.00057974,120]
[342967752,1732234239619,-150.0,0.00057991,120]
[342967753,1732234239628,-150.112208,0.00057998,120]
[342967754,1732234239637,-210.13980592,0.00057999,31]
[342967755,1732234239646,-500.0,0.00057999,120]
[342967756,1732234239657,-8765.05,0.00057999,120]
[342967757,1732234239666,-500.0,0.00057999,120]
[342967758,1732234239675,-327.21681323,0.00057999,120]
[342967759,1732234239685,-24966.18996526,0.00058,120]
[342967760,1732234239697,-25033.81003474,0.00058,120]
[342967761,1732234239707,-20000.000002,0.00058,60]
[342967762,1732234239716,-27497.39972927,0.00058,60]
[342967763,1732234239728,-3126.70614937,0.00058,60]
[342967764,1732234239816,-0.73731191,0.00058,60]
[342967765,1732234239827,-1185.49327801,0.00058,60]
[342967766,1732234239838,-429.04175051,0.00058,60]
[342967767,1732234239849,-472.02580349,0.00058,60]
[342967768,1732234239860,-8706.00123017,0.00058,60]
[342967769,1732234239871,-617.56801642,0.00058,60]
[342967770,1732234239883,-671.81999999,0.00058,60]
[342967771,1732234239895,-637.75974996,0.00058,60]
[342967778,1732234242417,-7609.39246563,0.00058,60]
[342967781,1732234242577,-48.09862815,0.00058,60]
[342967782,1732234242593,-359.78816233,0.00058,60]
[342967783,1732234242605,-3387.89656945,0.00058,60]
[342967784,1732234242616,-9446.22963276,0.00058,60]
[342967785,1732234242628,-3080.40589476,0.00058,60]
[342967786,1732234242639,-10789.07059502,0.00058,60]
[342967787,1732234242652,-22541.65522628,0.00058,60]
[342967788,1732234242663,-25704.665618,0.00058,60]
[342967789,1732234242741,-4073.29143046,0.00058,60]
[342967790,1732234242753,-5158.76811487,0.00058,60]
[342967791,1732234242764,-383.30640006,0.00058,60]
[342967799,1732234245466,-21047.3755,0.00058,60]
[342967800,1732234245520,-4470.73122401,0.00058,60]
[342967801,1732234245531,-21600.0,0.00058,60]
[342967802,1732234245575,-472.27914144,0.00050315,120]
[342967803,1732234245631,-27.72085856,0.00050315,120]
[342967804,1732234245640,-2404.77914144,0.00058,60]
[342967805,1732234245651,-12850.315276,0.00058,60]
[342967806,1732234245666,-1618.8643716,0.00058,60]
[342967807,1732234245678,-80.81273008,0.00058,60]
[342967808,1732234245686,-2459.02254917,0.00058,6]
[342967809,1732234245696,-887.35147196,0.00058,59]
[342967810,1732234245707,-12.64852804,0.00058,59]
[342967811,1732234245716,-1164.43147196,0.00058,7]
[342967814,1732234255800,3000.0,0.00012001,2]
[342967815,1732234274648,10000.0,0.00024,30]
[342967817,1732234276965,-3000.0,0.00012001,2]
[342967818,1732234292055,10000.0,0.00024,30]
[342967819,1732234293273,-1000.0,0.00012001,2]
[342967820,1732234309159,10000.0,0.00012,2]
[342967821,1732234325450,10000.0,0.00024,30]
[342967822,1732234347983,10000.0,0.00024,30]
[342967823,1732234349912,-3000.0,0.00012001,2]
[342967824,1732234363278,10000.0,0.00012,2]
[342967825,1732234382488,10000.0,0.00012,2]
[342967826,1732234400772,10000.0,0.00012,2]
[342967827,1732234416388,10000.0,0.00012,2]
[342967828,1732234432531,10000.0,0.0001501,10]
[342967829,1732234452717,10000.0,0.0001501,10]
[342967830,1732234468159,10000.0,0.00012001,2]
[342967832,1732234484209,10000.0,0.0001501,10]
[342967833,1732234499484,10000.0,0.0001501,10]
[342967834,1732234517142,10000.0,0.00012,2]
[342967835,1732234532534,10000.0,0.0001501,10]
[342967836,1732234547272,10000.0,0.0001501,10]
[342967837,1732234564139,10000.0,0.00012,2]
[342967838,1732234580426,10000.0,0.0001501,10]
[342967839,1732234595951,10000.0,0.00012,2]
[342967840,1732234610971,10000.0,0.0001501,10]
[342967841,1732234626366,10000.0,0.00012,2]
[342967842,1732234642109,10000.0,0.00015,10]
[342967843,1732234657609,10000.0,0.00015,10]
[342967844,1732234673395,10000.0,0.00015,10]
[342967845,1732234689157,10000.0,0.00012,2]
[342967846,1732234706996,363.0,0.00013,10]
[342967849,1732235279733,5039.33547873,0.0001,2]
[342967876,1732235362160,-3433.351698,0.00013,10]
[342967886,1732235431811,-3280.14140929,0.00013,10]
[342967889,1732235437652,-402.03360895,0.00013,10]
[342967890,1732235437711,-1521.47328376,0.00013,10]
[342967891,1732235437721,-3433.328766,0.000145,3]
[342967892,1732235437732,-308.47568626,0.00015,2]
[342967893,1732235437741,-156.74,0.00015342,2]
[342967894,1732235437752,-159.45,0.00015342,2]
[342967895,1732235437762,-300.0,0.00015875,2]
[342967896,1732235437774,-420.0,0.00017359,2]
[342967897,1732235437785,-7254.45436848,0.00018256,2]
[342967898,1732235437795,-587.0,0.00018981,2]
[342967899,1732235437806,-2776.75739909,0.000199,3]
[342967900,1732235437816,-296.57369763,0.0002,2]
[342967901,1732235437826,-3810.06014932,0.0002,2]
[342967902,1732235437836,-3950.0,0.0002,2]
[342967903,1732235437846,-230.0,0.00020756,2]
[342967904,1732235437856,-4478.00599777,0.0002152,2]
[342967905,1732235437866,-229.20199817,0.0002211,2]
[342967906,1732235437876,-2143.52813322,0.000225,2]
[342967907,1732235437886,-200.0,0.00023,2]
[342967908,1732235437896,-591.44541652,0.00023922,2]
[342967909,1732235437908,-361.03734819,0.00023922,2]
[342967910,1732235437918,-973.28206528,0.00024,2]
[342967911,1732235437928,-627.02046516,0.00024,2]
[342967912,1732235437938,-33.57201976,0.0002421,2]
[342967913,1732235437951,-3050.76160766,0.0002421,2]
[342967914,1732235437963,-311.976,0.00030691,27]
[342967915,1732235437973,-1000.0,0.00031162,2]
[342967916,1732235437983,-764.92820775,0.00035057,2]
[342967917,1732235437996,-235.07179225,0.00035057,2]
[342967918,1732235438006,-150.0,0.00035932,120]
[342967919,1732235438016,-1043.56740922,0.00036,10]
[342967920,1732235438027,-1.43259078,0.00036,10]
[342967921,1732235438040,-500.0,0.00036395,2]
[342967922,1732235438051,-250.0,0.00036395,120]
[342967923,1732235438061,-1338.10221769,0.00037427,2]
[342967924,1732235438073,-5248.97034177,0.00037427,2]
[342967925,1732235438083,-379.92509823,0.00037427,2]
[342967926,1732235438095,-14747.046105,0.00037427,2]
[342967927,1732235438107,-575.30635287,0.00037427,2]
[342967928,1732235438119,-283.35599748,0.00037427,2]
[342967929,1732235438128,-392.19214064,0.00037427,2]
[342967930,1732235439645,-343.90323346,0.00037427,2]
[342967931,1732235439707,-406.24944498,0.00037427,2]
[342967932,1732235439774,-1261.04503495,0.00037427,2]
[342967933,1732235439787,-1787.55805162,0.00037427,2]
[342967934,1732235439799,-1383.89329523,0.00037427,2]
[342967935,1732235439811,-550.27406209,0.00037427,2]
[342967936,1732235439823,-844.46840723,0.00037427,2]
[342967937,1732235439836,-22.98004909,0.00037427,2]
[342967938,1732235439845,-354.00179018,0.00037427,2]
[342967939,1732235439859,-621.51461131,0.00037427,2]
[342967940,1732235439871,-722.19529931,0.00037427,2]
[342967941,1732235439887,-770.09000007,0.00037427,2]
[342967942,1732235439898,-380.21998,0.00037427,2]
[342967946,1732235442431,-640.929245,0.00037427,2]
[342967947,1732235442442,-1103.55713475,0.00037427,2]
[342967949,1732235442454,-337.01913656,0.00037427,2]
[342967950,1732235442466,-5637.47543824,0.00037427,2]
[342967951,1732235442475,-14746.95904238,0.00037427,2]
[342967952,1732235442485,-18300.79118085,0.00037427,2]
[342967954,1732235442495,-2219.16068441,0.00037427,2]
[342967956,1732235442504,-31011.8604869,0.00037427,4]
[342967958,1732235442514,-535.48511268,0.000379,120]
[342967960,1732235442523,-150.0,0.0003809,120]
[342967962,1732235442533,-150.0,0.00038899,120]
[342967964,1732235442548,-1000.0,0.00038952,2]
[342967966,1732235442557,-159.45,0.00039671,2]
[342967967,1732235442567,-100417.45568973,0.000399,21]
[342967968,1732235442578,-589.08205371,0.000399,2]
[342967970,1732235442588,-150.0,0.00040914,120]
[342967972,1732235442597,-152.44,0.00040946,120]
[342967974,1732235442606,-150.0,0.0004159,120]
[342967976,1732235442615,-1150.4154,0.00041888,30]
[342967978,1732235442624,-150.0,0.000419,2]
[342967980,1732235442632,-579.53532801,0.00042216,15]
[342967981,1732235442641,-150.0,0.00042316,120]
[342967983,1732235442650,-150.0,0.0004235,120]
[342967985,1732235442660,-766.172522,0.000427,63]
[342967987,1732235442672,-1000.0,0.00042848,2]
[342967989,1732235442690,-19846.15870065,0.00043,30]
[342967991,1732235442700,-150.0,0.00044625,120]
[342967993,1732235442709,-152.44,0.00044723,120]
[342967995,1732235442718,-150.0,0.00045732,120]
[342967997,1732235442727,-156.74,0.00045753,2]
[342967999,1732235442737,-1000.0,0.00046743,2]
[342968001,1732235442746,-156.514,0.0004681,120]
[342968003,1732235442756,-579.53532801,0.00047403,15]
[342968005,1732235442765,-500.0,0.00047599,31]
[342968007,1732235442775,-500.0,0.00047599,31]
[342968009,1732235442785,-500.0,0.00047599,31]
[342968011,1732235442796,-192.96109414,0.00047599,31]
[342968012,1732235442806,-188176.19149148,0.000476,30]
[342968014,1732235442837,-26014.08557012,0.000476,30]
[342968015,1732235442848,-705.56,0.000476,30]
[342968016,1732235442859,-455.084487,0.000476,30]
[342968017,1732235442871,-8397.1178424,0.000476,30]
[342968018,1732235442882,-28419.6612953,0.000476,30]
[342968019,1732235442898,-1138.65264913,0.000476,30]
[342968020,1732235442910,-8305.3636294,0.000476,30]
[342968021,1732235442920,-272.9973582,0.00047696,19]
[342968022,1732235442929,-478.72,0.00047796,2]
[342968023,1732235442938,-15956.3551826,0.0004786,120]
[342968024,1732235442949,-152.44,0.00048499,120]
[342968025,1732235442962,-150.0,0.00048573,120]
[342968026,1732235442972,-1642.6736294,0.00049,120]
[342968028,1732235442982,-23900.0,0.00049016,2]
[342968029,1732235442991,-151.0,0.0004956,2]
[342968030,1732235443002,-150.0,0.00049753,120]
[342968031,1732235443012,-4631.26729148,0.000498,120]
[342968032,1732235443021,-478.72,0.00050059,2]
[342968033,1732235443031,-156.505,0.0005015,120]
[342968034,1732235443042,-311.976,0.00050518,90]
[342968035,1732235443053,-3000.0,0.000507,2]
[342968036,1732235443062,-435.23,0.000508,7]
[342968037,1732235443072,-150.0,0.00051507,120]
[342968038,1732235443081,-150.0,0.00051516,120]
[342968039,1732235443090,-250.0,0.00051604,120]
[342968040,1732235443099,-204.26,0.00052164,2]
[342968042,1732235443110,-152.44,0.00052276,120]
[342968044,1732235443120,-478.72,0.00052323,2]
[342968045,1732235443129,-600.2,0.00052344,120]
[342968046,1732235443139,-591.18602257,0.00052352,14]
[342968047,1732235443149,-591.18602257,0.00052401,14]
[342968048,1732235443158,-591.18602257,0.00052433,14]
[342968049,1732235443167,-591.18602257,0.00052472,14]
[342968050,1732235443178,-591.18602257,0.00052499,14]
[342968051,1732235443187,-150.0,0.000525,120]
[342968052,1732235443197,-579.53532801,0.0005259,15]
[342968053,1732235443207,-500.0,0.00052661,120]
[342968054,1732235443216,-2000.0,0.00052661,120]
[342968055,1732235443225,-500.0,0.00052661,120]
[342968056,1732235443235,-500.0,0.00052661,120]
[342968057,1732235443244,-200.0,0.00052661,120]
[342968058,1732235443255,-3000.0,0.000534,2]
[342968059,1732235443265,-156.533,0.0005349,120]
[342968060,1732235443275,-4331.0,0.00053819,117]
[342968061,1732235443285,-201.0,0.0005407,30]
[342968062,1732235443301,-150.0,0.00054259,120]
[342968063,1732235443311,-478.72,0.00054587,2]
[342968064,1732235443322,-250.0,0.00054625,120]
[342968065,1732235443332,-150.0,0.00054795,120]
[342968066,1732235443342,-150.0,0.00054965,120]
[342968067,1732235443351,-10000.0,0.00055,120]
[342968068,1732235443507,-816.999998,0.00055,120]
[342968069,1732235443519,-1036.59554756,0.00055,120]
[342968070,1732235443530,-2149.06253663,0.00055,120]
[342968071,1732235443543,-5216.41118262,0.00055,120]
[342968072,1732235443553,-38957.27756592,0.00055,30]
[342968073,1732235443563,-209.78071314,0.00055,120]
[342968074,1732235443573,-873.29651406,0.000554,30]
[342968075,1732235443582,-201.0,0.0005568,30]
[342968076,1732235443592,-5128.0,0.00055715,30]
[342968077,1732235443603,-580.0,0.00056,14]
[342968078,1732235443612,-152.44,0.00056052,120]
[342968079,1732235443622,-3000.0,0.000562,90]
[342968080,1732235443631,-156.529,0.0005683,120]
[342968081,1732235443640,-151.0,0.00056836,2]
[342968082,1732235443650,-584.0,0.00056849,54]
[342968083,1732235443660,-478.72,0.00056851,2]
[342968084,1732235443670,-10069.45895799,0.00057,120]
[342968085,1732235443679,-6331.22222991,0.00057,120]
[342968086,1732235443689,-6286.85857665,0.00057,90]
[342968087,1732235443699,-150.0,0.00057065,120]
[342968088,1732235443708,-362.63,0.00057278,60]
[342968089,1732235443717,-201.0,0.0005729,30]
[342968090,1732235443727,-1000.0,0.00057499,120]
[342968091,1732235443736,-500.0,0.00057534,120]
[342968092,1732235443746,-500.0,0.00057534,20]
[342968093,1732235443756,-503.36429119,0.00057534,120]
[342968094,1732235443766,-1708.93,0.00057534,120]
[342968095,1732235443776,-500.0,0.00057534,120]
[342968096,1732235443800,-347.10855969,0.00057534,120]
[342968097,1732235443811,-555.15,0.00057534,120]
[342968098,1732235443820,-500.0,0.00057534,120]
[342968099,1732235443830,-500.0,0.00057534,120]
[342968100,1732235443840,-500.0,0.00057534,120]
[342968101,1732235443850,-500.0,0.00057534,120]
[342968102,1732235443859,-500.0,0.00057534,120]
[342968103,1732235443869,-500.0,0.00057534,120]
[342968104,1732235443879,-500.0,0.00057534,120]
[342968105,1732235443890,-500.0,0.0005767,120]
[342968106,1732235443899,-500.0,0.0005767,120]
[342968107,1732235443909,-500.0,0.0005767,120]
[342968108,1732235443919,-2697.1,0.00057698,80]
[342968109,1732235443928,-579.53532801,0.00057777,15]
[342968110,1732235443939,-400.0,0.000578,21]
[342968111,1732235443949,-3563.85209334,0.000579,15]
[342968112,1732235443959,-800.0,0.000579,21]
[342968113,1732235443974,-500.0,0.00057944,120]
[342968114,1732235443984,-500.0,0.00057944,120]
[342968115,1732235443993,-391.55,0.00057998,120]
[342968116,1732235444003,-500.0,0.00057998,120]
[342968117,1732235444014,-1000.0,0.00057999,120]
[342968118,1732235444024,-500.0,0.00057999,120]
[342968119,1732235444034,-296.66,0.00057999,20]
[342968120,1732235444045,-1708.93,0.00057999,120]
[342968121,1732235444056,-555.15,0.00057999,120]
[342968122,1732235444066,-8034.63,0.00057999,120]
[342968123,1732235444075,-500.0,0.00057999,120]
[342968124,1732235444085,-272.67638707,0.00057999,120]
[342968125,1732235444096,-500.0,0.00057999,120]
[342968126,1732235444106,-500.0,0.00057999,120]
[342968127,1732235444115,-1916.92215207,0.00058,7]
[342968128,1732235444125,-86851.0,0.00058,60]
[342968129,1732235444135,-109297.07468189,0.00058,120]
[342968130,1732235444144,-39016.26612559,0.00058,120]
[342968131,1732235444154,-29859.49034406,0.00058,120]
[342968132,1732235444164,-269.30241621,0.00058,120]
[342968133,1732235444174,-150487.20697998,0.00058,60]
[342968134,1732235444183,-150.112208,0.00058178,120]
[342968135,1732235444193,-500.0,0.00058217,120]
[342968136,1732235444202,-500.0,0.00058217,120]
[342968137,1732235444212,-150.0,0.00058267,120]
[342968138,1732235444221,-500.0,0.00058399,120]
[342968139,1732235444231,-500.0,0.00058399,120]
[342968140,1732235444241,-1708.93,0.00058399,120]
[342968141,1732235444251,-1708.93,0.00058399,120]
[342968142,1732235444261,-555.15,0.00058399,120]
[342968143,1732235444271,-555.15,0.00058399,120]
[342968144,1732235444281,-312470.84981032,0.000584,36]
[342968145,1732235444292,-442.51937057,0.000584,61]
[342968146,1732235444307,-1323.8849,0.000584,2]
[342968147,1732235444316,-8703.5053,0.000584,2]
[342968148,1732235444326,-259355.84119203,0.000584,120]
[342968149,1732235444336,-157.112208,0.00058478,120]
[342968150,1732235444346,-313.2079928,0.00058489,120]
[342968151,1732235444356,-500.0,0.00058489,120]
[342968152,1732235444366,-1750.0,0.00058489,120]
[342968153,1732235444378,-500.0,0.00058489,120]
[342968154,1732235444388,-299.99017692,0.00058489,120]
[342968155,1732235444398,-500.0,0.00058489,120]
[342968156,1732235444407,-500.0,0.0005849,120]
[342968157,1732235444417,-500.0,0.0005849,120]
[342968158,1732235444427,-157.112208,0.00058498,120]
[342968159,1732235444437,-500.0,0.00058498,120]
[342968160,1732235444448,-500.0,0.00058498,120]
[342968161,1732235444457,-500.0,0.00058498,120]
[342968162,1732235444468,-500.0,0.00058498,120]
[342968163,1732235444480,-500.0,0.00058498,2]
[342968164,1732235444490,-171.7,0.00058498,120]